fUSD/lending_fUSD_20250125
["ID","MTS","AMOUNT","RATE_DAILY","PERIOD"]
[350282703,1737766250586,-500.0,0.00021102,2]
[350282704,1737766250596,-500.0,0.00021102,2]
[350282705,1737766250606,-828.64,0.00021102,2]
[350282706,1737766250616,-775.57,0.00021102,2]
[350282707,1737766250626,-672.65,0.00021102,2]
[350282708,1737766250636,-501.05,0.00021102,2]
[350282709,1737766250646,-694.2,0.00021102,2]
[350282710,1737766250657,-989.16,0.00021102,2]
[350282711,1737766250667,-1184.1,0.00021102,2]
[350282712,1737766250677,-1009.71,0.00021102,2]
[350282713,1737766250687,-1377.37,0.00021102,2]
[350282714,1737766250696,-500.0,0.00021102,2]
[350282715,1737766250707,-500.0,0.00021102,2]
[350282716,1737766250864,-500.0,0.00021102,2]
[350282717,1737766250874,-700.38,0.00021102,2]
[350282718,1737766250883,-500.0,0.00021102,2]
[350282719,1737766250892,-1237.33,0.00021102,2]
[350282720,1737766250901,-757.47,0.00021102,2]
[350282721,1737766250910,-500.0,0.00021102,2]
[350282722,1737766250921,-500.0,0.00021102,2]
[350282723,1737766250931,-528.77,0.00021102,2]
[350282724,1737766250941,-500.0,0.00021102,2]
[350282725,1737766250949,-600.49,0.00021102,2]
[350282726,1737766250960,-678.28,0.00021102,2]
[350282727,1737766250969,-757.12,0.00021102,2]
[350282728,1737766250978,-664.78,0.00021102,2]
[350282729,1737766250987,-1194.58,0.00021102,2]
[350282730,1737766250997,-500.0,0.00021102,2]
[350282731,1737766251006,-1260.01,0.00021102,2]
[350282732,1737766251015,-500.0,0.00021102,2]
[350282733,1737766251025,-1586.5,0.00021102,2]
[350282734,1737766251034,-500.0,0.00021102,2]
[350282735,1737766251045,-273.33,0.00021102,2]
[350282736,1737766251056,-564.49,0.00021102,2]
[350282737,1737766251067,-729.96,0.00021102,2]
[350282738,1737766251077,-500.0,0.00021102,2]
[350282739,1737766251087,-511.55,0.00021102,2]
[350282740,1737766251095,-544.58,0.00021102,2]
[350282741,1737766251105,-652.14,0.00021102,2]
[350282742,1737766251114,-500.0,0.00021102,2]
[350282743,1737766251123,-916.0,0.00021102,2]
[350282744,1737766251132,-1094.4,0.00021102,2]
[350282745,1737766251141,-150.0,0.00021137,4]
[350282746,1737766251151,-22334.79869675,0.00021143,2]
[350282747,1737766251160,-150.0,0.00021162,4]
[350282748,1737766251171,-632.32,0.00021165,2]
[350282749,1737766251180,-150.0,0.00021197,4]
[350282750,1737766251190,-156.42924986,0.000212,2]
[350282751,1737766251200,-43749.0093097,0.0002122,2]
[350282752,1737766251209,-268.41341043,0.00021233,2]
[350282753,1737766251219,-232.17837313,0.00021233,2]
[350282754,1737766251227,-500.0,0.00021238,2]
[350282755,1737766251237,-500.0,0.00021239,2]
[350282756,1737766251247,-613.79,0.00021239,2]
[350282757,1737766251258,-500.0,0.00021239,2]
[350282758,1737766251267,-500.0,0.00021239,2]
[350282759,1737766251275,-666.7,0.00021239,2]
[350282760,1737766251284,-500.0,0.00021239,2]
[350282761,1737766251293,-312.12,0.00021239,2]
[350282762,1737766251304,-876.65,0.00021239,2]
[350282763,1737766251314,-686.14,0.00021239,2]
[350282764,1737766251324,-500.0,0.00021239,2]
[350282765,1737766251335,-500.0,0.00021239,2]
[350282766,1737766251346,-828.64,0.00021239,2]
[350282767,1737766251357,-775.57,0.00021239,2]
[350282768,1737766251368,-672.65,0.00021239,2]
[350282769,1737766251378,-501.05,0.00021239,2]
[350282770,1737766251389,-694.2,0.00021239,2]
[350282771,1737766251399,-989.16,0.00021239,2]
[350282772,1737766251408,-1184.1,0.00021239,2]
[350282773,1737766251418,-1009.71,0.00021239,2]
[350282774,1737766251429,-1377.37,0.00021239,2]
[350282775,1737766251439,-500.0,0.00021239,2]
[350282776,1737766251450,-152.52,0.00021239,2]
[350282777,1737766251459,-500.0,0.00021239,2]
[350282778,1737766251469,-700.38,0.00021239,2]
[350282779,1737766251479,-500.0,0.00021239,2]
[350282780,1737766251489,-1237.33,0.00021239,2]
[350282781,1737766251499,-757.47,0.00021239,2]
[350282782,1737766251510,-500.0,0.00021239,2]
[350282783,1737766251520,-500.0,0.00021239,2]
[350282784,1737766251531,-528.77,0.00021239,2]
[350282785,1737766251541,-500.0,0.00021239,2]
[350282786,1737766251554,-600.49,0.00021239,2]
[350282787,1737766251563,-678.28,0.00021239,2]
[350282788,1737766251573,-757.12,0.00021239,2]
[350282789,1737766251582,-664.78,0.00021239,2]
[350282790,1737766251591,-1194.58,0.00021239,2]
[350282791,1737766251600,-500.0,0.00021239,2]
[350282792,1737766251610,-1260.01,0.00021239,2]
[350282793,1737766251619,-500.0,0.00021239,2]
[350282794,1737766251629,-1586.5,0.00021239,2]
[350282795,1737766251639,-526.2,0.00021239,2]
[350282796,1737766251648,-564.49,0.00021239,2]
[350282797,1737766251658,-729.96,0.00021239,2]
[350282798,1737766251668,-500.0,0.00021239,2]
[350282799,1737766251677,-511.55,0.00021239,2]
[350282800,1737766251687,-544.58,0.00021239,2]
[350282801,1737766251697,-652.14,0.00021239,2]
[350282802,1737766251707,-500.0,0.00021239,2]
[350282803,1737766251716,-916.0,0.00021239,2]
[350282804,1737766251726,-235.0,0.0002124,2]
[350282805,1737766251736,-2229.0,0.0002125,2]
[350282806,1737766251746,-150.0,0.00021257,4]
[350282807,1737766251757,-200.0,0.00021275,2]
[350282808,1737766251766,-200.0,0.00021275,2]
[350282809,1737766251776,-200.0,0.00021275,2]
[350282810,1737766251785,-200.0,0.00021275,2]
[350282811,1737766251794,-200.0,0.00021275,2]
[350282812,1737766251805,-200.0,0.00021275,2]
[350282813,1737766251814,-200.0,0.00021275,2]
[350282814,1737766251823,-200.0,0.00021275,2]
[350282815,1737766251832,-200.0,0.00021275,2]
[350282816,1737766251841,-200.0,0.00021275,2]
[350282817,1737766251851,-200.0,0.00021275,2]
[350282818,1737766251860,-200.0,0.00021275,2]
[350282819,1737766251869,-200.0,0.00021275,2]
[350282820,1737766251878,-200.0,0.00021275,2]
[350282821,1737766251887,-200.0,0.00021275,2]
[350282822,1737766251896,-200.0,0.00021275,2]
[350282823,1737766251905,-200.0,0.00021275,2]
[350282824,1737766251914,-200.0,0.00021275,2]
[350282825,1737766251923,-200.0,0.00021275,2]
[350282826,1737766251932,-196.0,0.00021275,2]
[350282827,1737766251941,-150.0,0.00021278,4]
[350282828,1737766251951,-2057.36717219,0.0002129,2]
[350282829,1737766251960,-31410.33487761,0.000213,2]
[350282830,1737766251970,-892.50027139,0.000213,2]
[350282831,1737766251979,-150.0,0.000213,2]
[350282832,1737766251989,-1420.74792602,0.000213,2]
[350282833,1737766251998,-9756.21101488,0.000213,2]
[350282834,1737766252008,-150.46831042,0.000213,2]
[350282835,1737766252017,-14676.01873229,0.000213,2]
[350282836,1737766252027,-22334.79869675,0.000213,2]
[350282837,1737766252038,-153.45453333,0.000213,3]
[350282838,1737766252047,-1640.40267224,0.000213,2]
[350282839,1737766252057,-150.0,0.00021317,4]
[350282840,1737766252067,-150.0,0.00021317,4]
[350282841,1737766252076,-2184.0,0.0002134,2]
[350282842,1737766252086,-150.0,0.00021356,2]
[350282843,1737766252095,-150.0,0.00021373,2]
[350282844,1737766252104,-500.0,0.00021375,2]
[350282845,1737766252113,-500.0,0.00021376,2]
[350282846,1737766252123,-613.79,0.00021376,2]
[350282847,1737766252132,-500.0,0.00021376,2]
[350282848,1737766252141,-500.0,0.00021376,2]
[350282849,1737766252151,-666.7,0.00021376,2]
[350282850,1737766252161,-500.0,0.00021376,2]
[350282851,1737766252171,-876.65,0.00021376,2]
[350282852,1737766252180,-686.14,0.00021376,2]
[350282853,1737766252190,-347.68,0.00021376,2]
[350282854,1737766252199,-500.0,0.00021376,2]
[350282855,1737766252209,-828.64,0.00021376,2]
[350282856,1737766252219,-775.57,0.00021376,2]
[350282857,1737766252228,-672.65,0.00021376,2]
[350282858,1737766252238,-501.05,0.00021376,2]
[350282859,1737766252247,-694.2,0.00021376,2]
[350282860,1737766252257,-989.16,0.00021376,2]
[350282861,1737766252266,-1184.1,0.00021376,2]
[350282862,1737766252276,-1009.71,0.00021376,2]
[350282863,1737766252286,-1377.37,0.00021376,2]
[350282864,1737766252297,-500.0,0.00021376,2]
[350282865,1737766252307,-500.0,0.00021376,2]
[350282866,1737766252316,-700.38,0.00021376,2]
[350282867,1737766252327,-500.0,0.00021376,2]
[350282868,1737766252337,-1237.33,0.00021376,2]
[350282869,1737766252346,-757.47,0.00021376,2]
[350282870,1737766252356,-500.0,0.00021376,2]
[350282871,1737766252365,-500.0,0.00021376,2]
[350282872,1737766252375,-528.77,0.00021376,2]
[350282873,1737766252385,-500.0,0.00021376,2]
[350282874,1737766252394,-600.49,0.00021376,2]
[350282875,1737766252404,-678.28,0.00021376,2]
[350282876,1737766252414,-757.12,0.00021376,2]
[350282877,1737766252423,-664.78,0.00021376,2]
[350282878,1737766252434,-1194.58,0.00021376,2]
[350282879,1737766252444,-500.0,0.00021376,2]
[350282880,1737766252454,-1260.01,0.00021376,2]
[350282881,1737766252464,-500.0,0.00021376,2]
[350282882,1737766252474,-1586.5,0.00021376,2]
[350282883,1737766252484,-564.49,0.00021376,2]
[350282884,1737766252494,-729.96,0.00021376,2]
[350282885,1737766252504,-191.57,0.00021376,2]
[350282886,1737766252513,-511.55,0.00021376,2]
[350282887,1737766252523,-652.14,0.00021376,2]
[350282888,1737766252533,-544.58,0.00021376,2]
[350282889,1737766252542,-500.0,0.00021376,2]
[350282890,1737766252553,-916.0,0.00021376,2]
[350282891,1737766252563,-150.0,0.00021377,4]
[350282892,1737766252574,-52462.28764109,0.0002138,2]
[350282893,1737766252583,-150.0,0.00021394,4]
[350282894,1737766252593,-800.0,0.000214,7]
[350282895,1737766252603,-409248.91490113,0.000214,2]
[350282896,1737766252613,-1147104.78838366,0.000214,2]
[350282897,1737766252622,-193.27023943,0.000214,2]
[350282898,1737766252632,-150.0,0.00021436,4]
[350282899,1737766252641,-8637.80945535,0.00021459,2]
[350282900,1737766252651,-150.0,0.00021496,4]
[350282901,1737766252660,-2566.42775147,0.000215,2]
[350282902,1737766252670,-1000.0,0.000215,10]
[350282903,1737766252679,-2110.0,0.000215,2]
[350282904,1737766252689,-151.893688,0.000215,9]
[350282905,1737766252698,-892.50027138,0.000215,2]
[350282906,1737766252708,-800.0,0.000215,7]
[350282907,1737766252718,-150.0,0.0002151,4]
[350282908,1737766252727,-500.0,0.00021512,2]
[350282909,1737766252737,-500.0,0.00021513,2]
[350282910,1737766252747,-613.79,0.00021513,2]
[350282911,1737766252759,-500.0,0.00021513,2]
[350282912,1737766252769,-500.0,0.00021513,2]
[350282913,1737766252779,-666.7,0.00021513,2]
[350282914,1737766252788,-500.0,0.00021513,2]
[350282915,1737766252800,-876.65,0.00021513,2]
[350282916,1737766252810,-686.14,0.00021513,2]
[350282917,1737766252819,-500.0,0.00021513,2]
[350282918,1737766252829,-828.64,0.00021513,2]
[350282919,1737766252839,-775.57,0.00021513,2]
[350282920,1737766252849,-672.65,0.00021513,2]
[350282921,1737766252859,-501.05,0.00021513,2]
[350282922,1737766252868,-694.2,0.00021513,2]
[350282923,1737766252878,-989.16,0.00021513,2]
[350282924,1737766252887,-1184.1,0.00021513,2]
[350282925,1737766252896,-1009.71,0.00021513,2]
[350282926,1737766252906,-1377.37,0.00021513,2]
[350282927,1737766252916,-500.0,0.00021513,2]
[350282928,1737766252927,-448.76189345,0.00021513,2]
[350282929,1737766252936,-700.38,0.00021513,2]
[350282930,1737766252945,-500.0,0.00021513,2]
[350282931,1737766252954,-1237.33,0.00021513,2]
[350282932,1737766252964,-757.47,0.00021513,2]
[350282933,1737766252973,-581.14,0.00021513,2]
[350282934,1737766252983,-500.0,0.00021513,2]
[350282935,1737766252993,-528.77,0.00021513,2]
[350282936,1737766253003,-500.0,0.00021513,2]
[350282937,1737766253012,-600.49,0.00021513,2]
[350282938,1737766253022,-678.28,0.00021513,2]
[350282939,1737766253031,-757.12,0.00021513,2]
[350282940,1737766253040,-664.78,0.00021513,2]
[350282941,1737766253051,-1194.58,0.00021513,2]
[350282942,1737766253061,-500.0,0.00021513,2]
[350282943,1737766253070,-1260.01,0.00021513,2]
[350282944,1737766253079,-500.0,0.00021513,2]
[350282945,1737766253089,-1586.5,0.00021513,2]
[350282946,1737766253099,-564.49,0.00021513,2]
[350282947,1737766253109,-729.96,0.00021513,2]
[350282948,1737766253118,-511.55,0.00021513,2]
[350282949,1737766253128,-544.58,0.00021513,2]
[350282950,1737766253138,-652.14,0.00021513,2]
[350282951,1737766253148,-427.68,0.00021513,2]
[350282952,1737766253157,-916.0,0.00021513,2]
[350282953,1737766253166,-4498.30756866,0.0002152,2]
[350282954,1737766253176,-1000.0,0.00021522,2]
[350282955,1737766253185,-150.0,0.00021536,4]
[350282956,1737766253195,-156.42924986,0.0002155,2]
[350282957,1737766253204,-150.0,0.00021556,4]
[350282958,1737766253214,-2184.0,0.0002156,2]
[350282959,1737766253223,-1030.59229924,0.0002156,2]
[350282960,1737766253233,-1000.23125102,0.0002156,2]
[350282961,1737766253242,-152.0,0.00021563,7]
[350282962,1737766253252,-268.41341043,0.00021567,2]
[350282963,1737766253263,-800.0,0.000216,7]
[350282964,1737766253273,-9756.21101488,0.000216,2]
[350282965,1737766253283,-1999.99,0.000216,7]
[350282966,1737766253293,-1420.74792602,0.000216,2]
[350282967,1737766253304,-150.4683104,0.000216,2]
[350282968,1737766253313,-14676.01873229,0.000216,2]
[350282969,1737766253323,-1640.40267224,0.000216,2]
[350282970,1737766253332,-87682.08941187,0.000216,2]
[350282971,1737766253343,-235.0,0.0002161,2]
[350282972,1737766253353,-150.0,0.00021616,4]
[350282973,1737766253363,-150.0,0.00021626,4]
[350282974,1737766253372,-500.0,0.00021649,2]
[350282975,1737766253383,-538.03681411,0.0002165,2]
[350282976,1737766253392,-613.79,0.0002165,2]
[350282977,1737766253402,-500.0,0.0002165,2]
[350282978,1737766253413,-500.0,0.0002165,2]
[350282979,1737766253422,-666.7,0.0002165,2]
[350282980,1737766253432,-642.75,0.0002165,2]
[350282981,1737766253442,-876.65,0.0002165,2]
[350282982,1737766253452,-686.14,0.0002165,2]
[350282983,1737766253463,-531.84441274,0.0002165,2]
[350282984,1737766253474,-775.57,0.0002165,2]
[350282985,1737766253485,-828.64,0.0002165,2]
[350282986,1737766253495,-672.65,0.0002165,2]
[350282987,1737766253506,-501.05,0.0002165,2]
[350282988,1737766253516,-694.2,0.0002165,2]
[350282989,1737766253526,-989.16,0.0002165,2]
[350282990,1737766253536,-1184.1,0.0002165,2]
[350282991,1737766253547,-1009.71,0.0002165,2]
[350282992,1737766253556,-1377.37,0.0002165,2]
[350282993,1737766253566,-500.0,0.0002165,2]
[350282994,1737766253576,-700.38,0.0002165,2]
[350282995,1737766253587,-500.0,0.0002165,2]
[350282996,1737766253596,-1237.33,0.0002165,2]
[350282997,1737766253606,-757.47,0.0002165,2]
[350282998,1737766253615,-500.0,0.0002165,2]
[350282999,1737766253624,-528.77,0.0002165,2]
[350283000,1737766253633,-500.0,0.0002165,2]
[350283001,1737766253642,-600.49,0.0002165,2]
[350283002,1737766253651,-678.28,0.0002165,2]
[350283003,1737766253660,-757.12,0.0002165,2]
[350283004,1737766253670,-664.78,0.0002165,2]
[350283005,1737766253681,-1194.58,0.0002165,2]
[350283006,1737766253691,-500.0,0.0002165,2]
[350283007,1737766253701,-1260.01,0.0002165,2]
[350283008,1737766253711,-500.0,0.0002165,2]
[350283009,1737766253721,-1586.5,0.0002165,2]
[350283010,1737766253730,-564.49,0.0002165,2]
[350283011,1737766253740,-729.96,0.0002165,2]
[350283012,1737766253750,-511.55,0.0002165,2]
[350283013,1737766253764,-544.58,0.0002165,2]
[350283014,1737766253774,-652.14,0.0002165,2]
[350283015,1737766253784,-916.0,0.0002165,2]
[350283016,1737766253793,-150.0,0.00021676,4]
[350283017,1737766253804,-800.0,0.000217,7]
[350283018,1737766253814,-7245.45134355,0.000217,2]
[350283019,1737766253823,-892.50027138,0.000217,2]
[350283020,1737766253834,-150.0,0.00021736,4]
[350283021,1737766253843,-150.0,0.00021743,4]
[350283022,1737766253853,-150.0,0.00021756,4]
[350283023,1737766253979,-2184.0,0.0002178,2]
[350283024,1737766253989,-500.0,0.00021786,2]
[350283025,1737766253998,-613.79,0.00021787,2]
[350283026,1737766254007,-500.0,0.00021787,2]
[350283027,1737766254017,-500.0,0.00021787,2]
[350283028,1737766254027,-666.7,0.00021787,2]
[350283029,1737766254036,-876.65,0.00021787,2]
[350283030,1737766254046,-686.14,0.00021787,2]
[350283031,1737766254056,-775.57,0.00021787,2]
[350283032,1737766254066,-828.64,0.00021787,2]
[350283033,1737766254076,-672.65,0.00021787,2]
[350283034,1737766254086,-501.05,0.00021787,2]
[350283035,1737766254095,-694.2,0.00021787,2]
[350283036,1737766254105,-989.16,0.00021787,2]
[350283037,1737766254115,-1184.1,0.00021787,2]
[350283038,1737766254124,-1009.71,0.00021787,2]
[350283039,1737766254134,-500.0,0.00021787,2]
[350283040,1737766254144,-1377.37,0.00021787,2]
[350283041,1737766254153,-700.38,0.00021787,2]
[350283042,1737766254163,-500.0,0.00021787,2]
[350283043,1737766254174,-1237.33,0.00021787,2]
[350283044,1737766254182,-757.47,0.00021787,2]
[350283045,1737766254192,-500.0,0.00021787,2]
[350283046,1737766254201,-528.77,0.00021787,2]
[350283047,1737766254211,-500.0,0.00021787,2]
[350283048,1737766254220,-600.49,0.00021787,2]
[350283049,1737766254230,-678.28,0.00021787,2]
[350283050,1737766254240,-757.12,0.00021787,2]
[350283051,1737766254250,-664.78,0.00021787,2]
[350283052,1737766254260,-1194.58,0.00021787,2]
[350283053,1737766254270,-500.0,0.00021787,2]
[350283054,1737766254280,-1260.01,0.00021787,2]
[350283055,1737766254290,-500.0,0.00021787,2]
[350283056,1737766254301,-1586.5,0.00021787,2]
[350283057,1737766254311,-564.49,0.00021787,2]
[350283058,1737766254320,-729.96,0.00021787,2]
[350283059,1737766254330,-511.55,0.00021787,2]
[350283060,1737766254339,-652.14,0.00021787,2]
[350283061,1737766254349,-544.58,0.00021787,2]
[350283062,1737766254360,-916.0,0.00021787,2]
[350283063,1737766254370,-150.0,0.00021795,4]
[350283064,1737766254380,-1207.0,0.000218,7]
[350283065,1737766254390,-341257.79124099,0.000218,2]
[350283066,1737766254400,-5434.0,0.000218,2]
[350283067,1737766254410,-21188.69969914,0.000218,2]
[350283068,1737766254420,-184.99,0.000218,30]
[350283069,1737766254430,-3180.861009,0.0002185,5]
[350283070,1737766254442,-150.0,0.00021855,4]
[350283071,1737766254451,-150.0,0.00021859,4]
[350283072,1737766254461,-2000.0,0.00021865,2]
[350283073,1737766254471,-2000.0,0.0002188,27]
[350283074,1737766254482,-5050.0,0.0002188,28]
[350283075,1737766254492,-4200.0,0.0002188,3]
[350283076,1737766254501,-2028.74,0.000219,3]
[350283077,1737766254511,-2000.0,0.000219,2]
[350283078,1737766254521,-2000.0,0.000219,2]
[350283079,1737766254530,-2000.0,0.000219,2]
[350283080,1737766254539,-2000.0,0.000219,2]
[350283081,1737766254549,-484.84220628,0.000219,2]
[350283082,1737766254559,-2000.0,0.000219,2]
[350283083,1737766254569,-2000.0,0.000219,2]
[350283084,1737766254579,-2000.0,0.000219,2]
[350283085,1737766254589,-2000.0,0.000219,2]
[350283086,1737766254599,-5000.0,0.000219,5]
[350283087,1737766254610,-2000.0,0.000219,2]
[350283088,1737766254620,-2000.0,0.000219,2]
[350283089,1737766254630,-193.27023943,0.000219,2]
[350283090,1737766254639,-892.50027138,0.000219,2]
[350283091,1737766254648,-268.41341043,0.000219,2]
[350283092,1737766254658,-1693.56307,0.000219,2]
[350283093,1737766254669,-156.42924986,0.000219,2]
[350283094,1737766254679,-1420.74792602,0.000219,2]
[350283095,1737766254690,-9756.21101488,0.000219,2]
[350283096,1737766254699,-150.4683104,0.000219,2]
[350283097,1737766254709,-14676.01873229,0.000219,2]
[350283098,1737766254720,-232.17837313,0.000219,3]
[350283099,1737766254730,-153.45453333,0.000219,4]
[350283100,1737766254741,-1640.40267224,0.000219,2]
[350283101,1737766254751,-150.0,0.00021915,4]
[350283102,1737766254766,-500.0,0.00021917,2]
[350283103,1737766254777,-500.0,0.00021917,2]
[350283104,1737766254787,-500.0,0.00021917,2]
[350283105,1737766254798,-2000.0,0.00021917,30]
[350283106,1737766254808,-2000.0,0.00021917,30]
[350283107,1737766254818,-2000.0,0.00021917,30]
[350283108,1737766254827,-2000.0,0.00021917,30]
[350283109,1737766254839,-2000.0,0.00021917,30]
[350283110,1737766254849,-2000.0,0.00021917,30]
[350283111,1737766254858,-2000.0,0.00021917,30]
[350283112,1737766254868,-1843.45791157,0.00021917,30]
[350283113,1737766254878,-500.0,0.00021917,7]
[350283114,1737766254887,-500.0,0.00021917,2]
[350283115,1737766254896,-500.0,0.00021917,2]
[350283116,1737766254905,-500.0,0.00021917,2]
[350283117,1737766254915,-500.0,0.00021917,2]
[350283118,1737766254928,-500.0,0.00021917,2]
[350283119,1737766254938,-500.0,0.00021917,2]
[350283120,1737766254947,-500.0,0.00021917,2]
[350283121,1737766254957,-500.0,0.00021917,2]
[350283122,1737766254967,-500.0,0.00021917,3]
[350283123,1737766254978,-500.0,0.00021917,3]
[350283124,1737766254988,-500.0,0.00021917,3]
[350283125,1737766254998,-500.0,0.00021917,3]
[350283126,1737766255008,-150.0,0.00021918,2]
[350283127,1737766255018,-150.0,0.00021918,2]
[350283128,1737766255027,-500.0,0.00021918,2]
[350283129,1737766255037,-250.0,0.00021921,2]
[350283130,1737766255047,-500.0,0.00021923,2]
[350283131,1737766255057,-2000.0,0.00021924,31]
[350283132,1737766255067,-613.79,0.00021924,2]
[350283133,1737766255077,-500.0,0.00021924,2]
[350283134,1737766255088,-500.0,0.00021924,2]
[350283135,1737766255098,-666.7,0.00021924,2]
[350283136,1737766255108,-876.65,0.00021924,2]
[350283137,1737766255117,-686.14,0.00021924,2]
[350283138,1737766255127,-775.57,0.00021924,2]
[350283139,1737766255137,-828.64,0.00021924,2]
[350283140,1737766255147,-672.65,0.00021924,2]
[350283141,1737766255157,-501.05,0.00021924,2]
[350283142,1737766255167,-694.2,0.00021924,2]
[350283143,1737766255177,-989.16,0.00021924,2]
[350283144,1737766255188,-1184.1,0.00021924,2]
[350283145,1737766255198,-1009.71,0.00021924,2]
[350283146,1737766255208,-332.65,0.00021924,2]
[350283147,1737766255218,-1377.37,0.00021924,2]
[350283148,1737766255227,-700.38,0.00021924,2]
[350283149,1737766255237,-500.0,0.00021924,2]
[350283150,1737766255247,-1237.33,0.00021924,2]
[350283151,1737766255256,-757.47,0.00021924,2]
[350283152,1737766255266,-500.0,0.00021924,2]
[350283153,1737766255275,-528.77,0.00021924,2]
[350283154,1737766255285,-500.0,0.00021924,2]
[350283155,1737766255294,-600.49,0.00021924,2]
[350283156,1737766255306,-678.28,0.00021924,2]
[350283157,1737766255315,-757.12,0.00021924,2]
[350283158,1737766255325,-664.78,0.00021924,2]
[350283159,1737766255335,-1194.58,0.00021924,2]
[350283160,1737766255345,-500.0,0.00021924,2]
[350283161,1737766255355,-1260.01,0.00021924,2]
[350283162,1737766255365,-500.0,0.00021924,2]
[350283163,1737766255375,-1586.5,0.00021924,2]
[350283164,1737766255385,-564.49,0.00021924,2]
[350283165,1737766255395,-729.96,0.00021924,2]
[350283166,1737766255405,-511.55,0.00021924,2]
[350283167,1737766255416,-652.14,0.00021924,2]
[350283168,1737766255425,-544.58,0.00021924,2]
[350283169,1737766255434,-916.0,0.00021924,2]
[350283170,1737766255444,-220.45,0.0002194,5]
[350283171,1737766255452,-500.0,0.00021942,2]
[350283172,1737766255461,-1289.61818657,0.00021944,2]
[350283173,1737766255470,-500.0,0.00021945,2]
[350283174,1737766255478,-7553.5530852,0.0002195,5]
[350283175,1737766255486,-863.7,0.00021956,2]
[350283176,1737766255494,-863.7,0.00021956,2]
[350283177,1737766255502,-863.7,0.00021956,2]
[350283178,1737766255511,-863.7,0.00021956,2]
[350283179,1737766255520,-863.7,0.00021956,2]
[350283180,1737766255529,-863.7,0.00021956,2]
[350283181,1737766255539,-863.7,0.00021956,2]
[350283182,1737766255548,-863.7,0.00021956,2]
[350283183,1737766255559,-863.7,0.00021956,2]
[350283184,1737766255569,-863.7,0.00021956,2]
[350283185,1737766255580,-235.0,0.0002197,2]
[350283186,1737766255590,-211.0,0.0002197,2]
[350283187,1737766255601,-206.0,0.0002197,2]
[350283188,1737766255611,-2057.36717219,0.0002197,2]
[350283189,1737766255621,-500.0,0.00021973,2]
[350283190,1737766255632,-1058.0,0.00021975,2]
[350283191,1737766255642,-1058.0,0.00021975,2]
[350283192,1737766255652,-1058.0,0.00021975,2]
[350283193,1737766255661,-188.86589135,0.00021975,4]
[350283194,1737766255670,-166.51923397,0.00021975,4]
[350283195,1737766255682,-162.05045319,0.00021975,4]
[350283196,1737766255692,-224.00442563,0.00021975,4]
[350283197,1737766255702,-184475.576066,0.0002198,2]
[350283198,1737766255711,-4819.0,0.0002198,3]
[350283199,1737766255723,-260304.20366156,0.0002198,2]
[350283200,1737766255732,-229728.52423759,0.0002198,3]
[350283201,1737766255742,-368330.04835792,0.0002198,3]
[350283202,1737766255752,-594.11928071,0.0002198,2]